bitfinex/quotes_BTCUSD_20240915
["timestamp","ask_amount","ask_price","bid_price","bid_amount"]
[1726395677443,6.31266746,60149.0,60148.0,0.35423376]
[1726395677663,6.06786299,60149.0,60148.0,0.35423376]
[1726395677894,6.31268877,60149.0,60148.0,0.35423376]
[1726395678351,6.06786299,60149.0,60148.0,0.35423376]
[1726395678545,6.2858705,60149.0,60148.0,0.35423376]
[1726395680088,6.45711071,60149.0,60148.0,0.35423376]
[1726395680333,6.2858705,60149.0,60148.0,0.35423376]
[1726395682178,6.60564512,60149.0,60148.0,0.25448076]
[1726395682418,6.60564512,60149.0,60148.0,0.18797876]
[1726395683342,6.60564512,60149.0,60148.0,0.12147676]
[1726395683793,6.75077782,60149.0,60148.0,7.6e-07]
[1726395683961,6.75077782,60149.0,60148.0,1.6e-07]
[1726395683962,3.16992382,60149.0,60148.0,1.6e-07]
[1726395684173,3.16992382,60149.0,60148.0,6.6e-07]
[1726395684461,6.02875625,60148.0,60147.0,2.011]
[1726395684621,6.08127697,60148.0,60147.0,2.011]
[1726395685214,6.09868457,60148.0,60147.0,2.011]
[1726395685383,6.24542487,60148.0,60147.0,1.84474]
[1726395685587,6.25942487,60148.0,60147.0,1.84474]
[1726395685996,6.11268457,60148.0,60147.0,1.84474]
[1726395686219,6.11268457,60148.0,60147.0,1.811488]
[1726395686877,6.13879268,60148.0,60147.0,1.811488]
[1726395687103,6.13879268,60148.0,60147.0,1.778236]
[1726395687565,6.15279268,60148.0,60147.0,1.744984]
[1726395687788,6.15279268,60148.0,60147.0,1.711732]
[1726395688252,5.99151989,60148.0,60147.0,1.711732]
[1726395689129,5.82027968,60148.0,60147.0,1.711732]
[1726395691416,5.82027968,60148.0,60147.0,1.712555]
[1726395691621,5.82027968,60148.0,60147.0,1.71991198]
[1726395693855,5.79417157,60148.0,60147.0,1.71991198]
[1726395695418,6.06336346,60148.0,60147.0,1.71991198]
[1726395696098,5.79417157,60148.0,60147.0,1.71991198]
[1726395696874,5.8182792,60148.0,60147.0,1.71991198]
[1726395697075,5.8202792,60148.0,60147.0,1.71991198]
[1726395697510,5.8202792,60148.0,60147.0,1.62610443]
[1726395697741,6.08788409,60148.0,60147.0,1.62610443]
[1726395698325,5.8182792,60148.0,60147.0,1.62610443]
[1726395698526,6.08788409,60148.0,60147.0,1.62610443]
[1726395698910,5.8182792,60148.0,60147.0,1.62610443]
[1726395699810,5.8202792,60148.0,60147.0,1.62610443]
[1726395700718,5.8182792,60148.0,60147.0,1.62610443]
[1726395700955,5.8182792,60148.0,60147.0,1.82360443]
[1726395703353,2.2374252,60148.0,60147.0,1.82360443]
[1726395703624,5.76575848,60148.0,60147.0,1.82360443]
[1726395703866,5.8182792,60148.0,60147.0,1.82360443]
[1726395704810,5.8199252,60148.0,60147.0,1.82360443]
[1726395707956,5.8219252,60148.0,60147.0,1.82360443]
[1726395708649,5.8199252,60148.0,60147.0,1.82360443]
[1726395710573,6.08941351,60148.0,60147.0,1.82360443]
[1726395711645,5.8199252,60148.0,60147.0,1.82360443]
[1726395711863,6.0753752,60148.0,60147.0,1.82360443]
[1726395712071,6.0613752,60148.0,60147.0,1.82360443]
[1726395712265,6.0753752,60148.0,60147.0,1.82360443]
[1726395712492,5.8059252,60148.0,60147.0,1.82360443]
[1726395712732,5.7919252,60148.0,60147.0,1.82360443]
[1726395712991,5.8059252,60148.0,60147.0,1.82360443]
[1726395713251,5.8199252,60148.0,60147.0,1.82360443]
[1726395713480,5.8059252,60148.0,60147.0,1.82360443]
[1726395713928,5.76581757,60148.0,60147.0,1.82360443]
[1726395714149,5.77981757,60148.0,60147.0,1.82360443]
[1726395715524,5.79381757,60148.0,60147.0,1.82360443]
[1726395715992,5.80781757,60148.0,60147.0,1.82360443]
[1726395718700,5.8339236,60148.0,60147.0,1.82360443]
[1726395721102,5.8339236,60148.0,60147.0,1.82270443]
[1726395721601,5.8339236,60148.0,60147.0,1.82260443]
[1726395721850,5.8339236,60148.0,60147.0,1.82442306]
[1726395722082,5.8339236,60148.0,60147.0,1.82362306]
[1726395722596,5.8339236,60148.0,60147.0,1.82352306]
[1726395722933,5.8339236,60148.0,60147.0,1.82262306]
[1726395723189,5.9006366,60148.0,60147.0,1.82476545]
[1726395723423,5.9006366,60148.0,60147.0,1.82466545]
[1726395723623,5.9006366,60148.0,60147.0,1.82396545]
[1726395723873,5.9006366,60148.0,60147.0,1.82376545]
[1726395724109,5.87453057,60148.0,60147.0,1.82376545]
[1726395724353,5.87453057,60148.0,60147.0,1.82366545]
[1726395727087,5.9006366,60148.0,60147.0,1.82366545]
[1726395728547,5.9026366,60148.0,60147.0,1.82366545]
[1726395728755,5.9006366,60148.0,60147.0,1.62534245]
[1726395732912,5.9026366,60148.0,60147.0,1.62534245]
[1726395733207,5.9006366,60148.0,60147.0,1.62534245]
[1726395734149,5.87453057,60148.0,60147.0,1.62534245]
[1726395735038,5.87653057,60148.0,60147.0,1.62534245]
[1726395736419,5.87453057,60148.0,60147.0,1.62534245]
[1726395736886,5.87653057,60148.0,60147.0,1.62534245]
[1726395737367,6.51535,60148.0,60147.0,1.62534245]
[1726395737589,6.51535,60148.0,60147.0,1.45908245]
[1726395737590,6.7559997,60148.0,60147.0,1.45908245]
[1726395737822,6.7559997,60148.0,60147.0,1.42583045]
[1726395738072,6.7559997,60148.0,60147.0,1.29282245]
[1726395739645,6.7559997,60148.0,60147.0,1.19306645]
[1726395739908,7.00094493,60148.0,60147.0,0.99355445]
[1726395740144,7.00094493,60148.0,60147.0,0.98213645]
[1726395740893,6.7559997,60148.0,60147.0,0.88320345]
[1726395741789,6.7559997,60148.0,60147.0,0.84995145]
[1726395742226,7.00094493,60148.0,60147.0,0.78344745]
[1726395744009,6.94839523,60148.0,60147.0,0.68369145]
[1726395744233,6.94839523,60148.0,60147.0,0.61718745]
[1726395744917,6.94839523,60148.0,60147.0,0.58393545]
[1726395745130,6.94839523,60148.0,60147.0,0.51743145]
[1726395745585,6.70345,60148.0,60147.0,0.48417945]
[1726395745798,6.70345,60148.0,60147.0,0.45092745]
[1726395746010,6.23515,60148.0,60147.0,0.41767545]
[1726395746245,6.23515,60148.0,60147.0,0.35117145]
[1726395747151,6.20904357,60148.0,60147.0,0.31791945]
[1726395747367,6.20904357,60148.0,60147.0,0.28466745]
[1726395748613,6.26159327,60148.0,60147.0,0.18491145]
[1726395748834,6.28770124,60148.0,60147.0,0.15165945]
[1726395749054,6.28770124,60148.0,60147.0,0.11840745]
[1726395751068,6.35727568,60148.0,60147.0,0.08515545]
[1726395751308,6.35727568,60148.0,60147.0,0.05190345]
[1726395751552,6.28770124,60148.0,60147.0,0.01865145]
[1726395751762,6.53264647,60148.0,60147.0,4.5e-07]
[1726395751979,2.95179247,60148.0,60147.0,4.5e-07]
[1726395752822,2.04796325,60146.0,60145.0,2.23745595]
[1726395752970,2.04796325,60146.0,60145.0,2.17094995]
[1726395752971,5.68133797,60146.0,60145.0,2.17094995]
[1726395753193,5.68133797,60146.0,60145.0,2.18238832]
[1726395753998,5.68133797,60146.0,60145.0,2.08262932]
[1726395754217,5.69533797,60146.0,60145.0,2.01612332]
[1726395754444,5.70933797,60146.0,60145.0,2.01612332]
[1726395754950,5.70933797,60146.0,60145.0,1.98287032]
[1726395757123,5.73544612,60146.0,60145.0,1.94961732]
[1726395757327,5.70933797,60146.0,60145.0,1.88311132]
[1726395757707,5.70933797,60146.0,60145.0,1.84985832]
[1726395759188,5.76188767,60146.0,60145.0,1.71684632]
[1726395759405,5.76188767,60146.0,60145.0,1.68359332]
[1726395759671,6.09441167,60146.0,60145.0,1.61708732]
[1726395759905,6.26565188,60146.0,60145.0,1.51732832]
[1726395760354,6.29176016,60146.0,60145.0,1.51732832]
[1726395760813,6.12051995,60146.0,60145.0,1.41756932]
[1726395761072,5.44368025,60146.0,60145.0,1.35106332]
[1726395761706,5.44368025,60146.0,60145.0,1.31781032]
[1726395762364,5.44368025,60146.0,60145.0,1.28455732]
[1726395762566,5.44368025,60146.0,60145.0,1.21805132]
[1726395762795,5.44368025,60146.0,60145.0,1.18479832]
[1726395763441,5.61492046,60146.0,60145.0,1.15154532]
[1726395763721,5.61492046,60146.0,60145.0,1.01853332]
[1726395764613,5.61492046,60146.0,60145.0,0.88552132]
[1726395764835,5.44368025,60146.0,60145.0,0.75333232]
[1726395765701,5.44368025,60146.0,60145.0,0.68682632]
[1726395765915,5.44368025,60146.0,60145.0,0.65357332]
[1726395766354,2.48711625,60146.0,60145.0,0.62032032]
[1726395766579,2.43459553,60146.0,60145.0,0.58706732]
[1726395766803,6.23921046,60146.0,60145.0,0.42080232]
[1726395769102,6.23921046,60146.0,60145.0,0.35429632]
[1726395769334,6.33678833,60146.0,60145.0,0.25453632]
[1726395769813,6.33678833,60146.0,60145.0,0.22128232]
[1726395772080,6.33678833,60146.0,60145.0,0.18802832]
[1726395772304,6.33678833,60146.0,60145.0,0.15477432]
[1726395772760,6.32278833,60146.0,60145.0,0.05501232]
[1726395772930,6.32278833,60146.0,60145.0,0.02175832]
[1726395773155,2.38055825,60144.0,60143.0,1.79719632]
[1726395773710,6.01393297,60144.0,60143.0,1.76394232]
[1726395774085,6.01393297,60144.0,60143.0,1.63092632]
[1726395774295,6.02793297,60144.0,60143.0,1.63885251]
[1726395774698,6.04193297,60144.0,60143.0,1.60559851]
[1726395774899,6.04193297,60144.0,60143.0,1.57234451]
[1726395775746,6.21317318,60144.0,60143.0,1.43932851]
[1726395775951,6.51082515,60144.0,60143.0,1.40607451]
[1726395776151,6.26572288,60144.0,60143.0,1.40607451]
[1726395776364,6.51082515,60144.0,60143.0,1.40607451]
[1726395776580,6.33956462,60144.0,60143.0,1.40607451]
[1726395776790,2.75871062,60144.0,60143.0,1.30631251]
[1726395776989,6.09448267,60144.0,60143.0,1.24062751]
[1726395777618,6.09448267,60144.0,60143.0,1.20737351]
[1726395778029,6.09448267,60144.0,60143.0,1.17411951]
[1726395778207,6.09448267,60144.0,60143.0,1.14086551]
[1726395778416,6.09448267,60144.0,60143.0,1.10761151]
[1726395778631,6.09448267,60144.0,60143.0,1.07435751]
[1726395779384,6.09448267,60144.0,60143.0,0.94134151]
[1726395780073,6.28259657,60144.0,60143.0,0.77507151]
[1726395780786,6.28259657,60144.0,60143.0,0.74181751]
[1726395781464,6.12059158,60144.0,60143.0,0.60880151]
[1726395782126,6.12059158,60144.0,60143.0,0.54229351]
[1726395782655,6.12059158,60144.0,60143.0,0.44253151]
[1726395782902,6.12059158,60144.0,60143.0,0.40927751]
[1726395783402,6.29183179,60144.0,60143.0,0.37602351]
[1726395783628,6.26572288,60144.0,60143.0,0.27626051]
[1726395783878,6.26572288,60144.0,60143.0,0.17649551]
[1726395784121,6.09448267,60144.0,60143.0,0.10998551]
[1726395784842,6.09448267,60144.0,60143.0,0.07673051]
[1726395785308,6.33967537,60144.0,60143.0,0.01022051]
[1726395785799,2.38063025,60142.0,60141.0,1.38085757]
[1726395786028,5.96148425,60142.0,60141.0,1.38085757]
[1726395786249,6.06655467,60142.0,60141.0,1.38085757]
[1726395786484,6.53520639,60142.0,60141.0,1.36085757]
[1726395786709,6.29001958,60142.0,60141.0,1.32760257]
[1726395787000,6.53520639,60142.0,60141.0,1.29434757]
[1726395787221,6.53520639,60142.0,60141.0,1.19458257]
[1726395787441,6.30401958,60142.0,60141.0,1.19458257]
[1726395787893,6.30401958,60142.0,60141.0,1.16132757]
[1726395788368,6.54918293,60142.0,60141.0,1.02830757]
[1726395788598,6.56318293,60142.0,60141.0,1.02830757]
[1726395788820,6.31801958,60142.0,60141.0,0.92854257]
[1726395789046,6.31801958,60142.0,60141.0,0.89528757]
[1726395789528,6.09422967,60142.0,60141.0,0.86203257]
[1726395789743,6.09422967,60142.0,60141.0,0.79552257]
[1726395789985,6.09422967,60142.0,60141.0,0.69658057]
[1726395790204,5.98151667,60142.0,60141.0,0.69658057]
[1726395790665,5.98351667,60142.0,60141.0,0.69658057]
[1726395790892,5.98151667,60142.0,60141.0,0.52948257]
[1726395791111,5.61971467,60142.0,60141.0,0.52948257]
[1726395791822,5.62171467,60142.0,60141.0,0.49622757]
[1726395792049,5.62171467,60142.0,60141.0,0.46297257]
[1726395792500,5.62171467,60142.0,60141.0,0.39646257]
[1726395792746,2.51337567,60142.0,60141.0,0.32995257]
[1726395793246,6.04170895,60142.0,60141.0,0.20767287]
[1726395793476,2.51337567,60142.0,60141.0,0.20767287]
[1726395793714,6.06812049,60142.0,60141.0,0.17441787]
[1726395793940,6.06812049,60142.0,60141.0,0.07465287]
[1726395794179,6.06812049,60142.0,60141.0,0.04139687]
[1726395794895,6.06612049,60142.0,60141.0,3e-07]
[1726395795137,2.44611125,60141.0,60140.0,0.4739]
[1726395795366,6.07948597,60141.0,60140.0,0.4739]
[1726395795831,6.04689357,60141.0,60140.0,0.4739]
[1726395796543,6.06089357,60141.0,60140.0,0.4739]
[1726395796768,6.07489357,60141.0,60140.0,0.4739]
[1726395796997,6.10100294,60141.0,60140.0,0.4739]
[1726395800209,5.71692169,60141.0,60140.0,0.4739]
[1726395800434,5.75100294,60141.0,60140.0,0.4739]
[1726395802329,6.10100294,60141.0,60140.0,0.4739]
[1726395802752,6.10100294,60141.0,60140.0,0.474723]
[1726395803681,6.34617596,60141.0,60140.0,0.474723]
[1726395803910,6.07489357,60141.0,60140.0,0.474723]
[1726395804600,6.12489357,60141.0,60140.0,0.474723]
[1726395806970,6.15100278,60141.0,60140.0,0.474723]
[1726395810746,6.10100278,60141.0,60140.0,0.474723]
[1726395810986,5.75100278,60141.0,60140.0,0.474723]
[1726395811215,5.41845178,60141.0,60140.0,0.474723]
[1726395813915,5.39234257,60141.0,60140.0,0.474723]
[1726395815350,5.39234257,60141.0,60140.0,0.4739]
[1726395816908,5.41845052,60141.0,60140.0,0.4739]
[1726395820463,5.41845052,60141.0,60140.0,0.39277966]
[1726395822580,1.84732767,60141.0,60140.0,0.39277966]
[1726395822802,5.37566095,60141.0,60140.0,0.39277966]
[1726395823003,5.42818167,60141.0,60140.0,0.39277966]
[1726395824168,5.40207372,60141.0,60140.0,0.39277966]
[1726395826747,1.65358725,60140.0,60139.0,0.05016966]
[1726395826977,5.23444125,60140.0,60139.0,0.05016966]
[1726395827896,5.24844125,60140.0,60139.0,0.05016966]
[1726395834923,5.24844125,60140.0,60139.0,0.01525877]
[1726395835050,5.31515725,60140.0,60139.0,0.01525877]
[1726395836767,5.36284251,60140.0,60139.0,0.01525877]
[1726395839743,5.36284251,60140.0,60139.0,0.01608177]
[1726395840513,5.36284251,60140.0,60139.0,0.01525877]
[1726395845048,5.60808041,60140.0,60139.0,0.01525877]
[1726395845268,1.65361025,60139.0,60138.0,0.14311877]
[1726395845485,5.28214951,60139.0,60138.0,0.14311877]
[1726395845928,1.63063725,60138.0,60137.0,1.2934]
[1726395846146,5.28217651,60138.0,60137.0,1.2934]
[1726395848284,5.29617651,60138.0,60137.0,1.2934]
[1726395850114,5.32228576,60138.0,60137.0,1.2934]
[1726395853070,5.32228576,60138.0,60137.0,1.294223]
[1726395853982,5.29617651,60138.0,60137.0,1.2934]
[1726395854215,5.62874451,60138.0,60137.0,1.22353]
[1726395854456,5.86843712,60138.0,60137.0,1.052589]
[1726395854692,5.91609113,60138.0,60137.0,1.052589]
[1726395855148,5.87106296,60138.0,60137.0,1.052589]
[1726395855629,5.81851326,60138.0,60137.0,1.052589]
[1726395856583,5.62871326,60138.0,60137.0,1.052589]
[1726395856812,5.65482278,60138.0,60137.0,1.052589]
[1726395857323,5.65482278,60138.0,60137.0,1.016259]
[1726395857550,5.89462278,60138.0,60137.0,0.980469]
[1726395860305,5.84696877,60138.0,60137.0,0.980469]
[1726395860520,5.8949456,60138.0,60137.0,0.980469]
[1726395861165,5.8449456,60138.0,60137.0,0.980469]
[1726395861883,5.79696877,60138.0,60137.0,0.980469]
[1726395862559,5.84494716,60138.0,60137.0,0.980469]
[1726395863704,5.79696877,60138.0,60137.0,0.980469]
[1726395864167,5.77085925,60138.0,60137.0,0.980469]
[1726395864396,5.81881099,60138.0,60137.0,0.980469]
[1726395866046,5.81881099,60138.0,60137.0,0.981292]
[1726395866493,5.82045699,60138.0,60137.0,0.981292]
[1726395867378,6.09182605,60138.0,60137.0,0.981292]
[1726395867608,6.09182605,60138.0,60137.0,0.980469]
[1726395868529,5.84656651,60138.0,60137.0,0.980469]
[1726395869678,6.09186219,60138.0,60137.0,0.980469]
[1726395869907,6.14186219,60138.0,60137.0,0.980469]
[1726395871121,6.09186219,60138.0,60137.0,0.980469]
[1726395871597,5.89656651,60138.0,60137.0,0.980469]
[1726395871842,5.89656651,60138.0,60137.0,0.874859]
[1726395872077,6.21516651,60138.0,60137.0,0.874859]
[1726395873062,6.21516651,60138.0,60137.0,0.740978]
[1726395873528,6.21516651,60138.0,60137.0,0.687358]
[1726395873999,6.92417469,60138.0,60137.0,0.47234502]
[1726395874231,6.92417469,60138.0,60137.0,0.29025502]
[1726395874470,6.92417469,60138.0,60137.0,0.28273502]
[1726395874969,6.92417469,60138.0,60137.0,0.10491387]
[1726395875429,6.92417469,60138.0,60137.0,0.07851387]
[1726395875893,1.98626525,60136.0,60135.0,1.43681387]
[1726395876185,5.76161925,60136.0,60135.0,1.43681387]
[1726395876418,5.80957099,60136.0,60135.0,1.43681387]
[1726395876655,5.80957099,60136.0,60135.0,1.41110987]
[1726395876886,5.80957099,60136.0,60135.0,1.37785087]
[1726395877118,5.80957099,60136.0,60135.0,1.19031604]
[1726395877352,6.14017099,60136.0,60135.0,1.19031604]
[1726395877602,6.15417099,60136.0,60135.0,1.17741104]
[1726395878572,6.23283073,60136.0,60135.0,0.99791604]
[1726395878799,6.18028103,60136.0,60135.0,0.93139804]
[1726395879267,6.18028103,60136.0,60135.0,0.89813904]
[1726395879770,6.18028103,60136.0,60135.0,0.79336204]
[1726395879969,6.18028103,60136.0,60135.0,0.76010304]
[1726395882158,6.18028103,60136.0,60135.0,0.61521604]
[1726395882867,6.18028103,60136.0,60135.0,0.51543904]
[1726395883101,6.18028103,60136.0,60135.0,0.48218004]
[1726395883350,6.18028103,60136.0,60135.0,0.39966204]
[1726395884055,6.18028103,60136.0,60135.0,0.32014404]
[1726395884477,6.56540973,60136.0,60135.0,0.18618604]
[1726395884710,6.56540973,60136.0,60135.0,0.15292604]
[1726395884959,6.51286003,60136.0,60135.0,0.00568604]
[1726395885181,2.18042625,60134.0,60133.0,1.63348604]
[1726395885651,2.22837799,60134.0,60133.0,1.63348604]
[1726395885882,5.82663959,60134.0,60133.0,1.55296604]
[1726395886120,5.82663959,60134.0,60133.0,1.48644604]
[1726395886417,5.82663959,60134.0,60133.0,1.45318604]
[1726395886874,5.82663959,60134.0,60133.0,1.28688604]
[1726395887327,5.86674984,60134.0,60133.0,1.28688604]
[1726395887591,5.86674984,60134.0,60133.0,1.24692604]
[1726395887808,5.86674984,60134.0,60133.0,1.21366604]
[1726395888049,5.86674984,60134.0,60133.0,1.08238112]
[1726395888289,5.86674984,60134.0,60133.0,1.01532112]
[1726395888527,5.86674984,60134.0,60133.0,1.00132112]
[1726395888769,5.86674984,60134.0,60133.0,0.96806112]
[1726395889011,5.86674984,60134.0,60133.0,0.93480112]
[1726395889235,5.86674984,60134.0,60133.0,0.83502112]
[1726395889456,5.86674984,60134.0,60133.0,0.81268306]
[1726395889918,5.86674984,60134.0,60133.0,0.77491306]
[1726395890929,5.87672855,60134.0,60133.0,0.77491306]
[1726395891617,5.87672855,60134.0,60133.0,0.77573606]
[1726395893695,5.87672855,60134.0,60133.0,0.67275606]
[1726395894165,5.8506183,60134.0,60133.0,0.67275606]
[1726395894610,5.8506183,60134.0,60133.0,0.65875606]
[1726395895367,5.8646183,60134.0,60133.0,0.65875606]
[1726395896531,5.8646183,60134.0,60133.0,0.64815506]
[1726395897201,5.89072902,60134.0,60133.0,0.64815506]
[1726395899713,5.55813902,60134.0,60133.0,0.64815506]
[1726395899945,5.30811902,60134.0,60133.0,0.64815506]
[1726395902409,5.36403902,60134.0,60133.0,0.64815506]
[1726395902871,5.31608728,60134.0,60133.0,0.64815506]
[1726395903565,5.31773328,60134.0,60133.0,0.64815506]
[1726395904027,5.33960503,60134.0,60133.0,0.64733206]
[1726395907100,5.67219503,60134.0,60133.0,0.64733206]
[1726395907335,5.64861568,60134.0,60133.0,0.64733206]
[1726395907571,5.82901568,60134.0,60133.0,0.63068106]
[1726395907802,6.16160568,60134.0,60133.0,0.63068106]
[1726395908037,6.16160568,60134.0,60133.0,0.61892306]
[1726395908757,6.16160568,60134.0,60133.0,0.60592306]
[1726395908981,6.40681586,60134.0,60133.0,0.53940306]
[1726395909209,6.40681586,60134.0,60133.0,0.50614306]
[1726395909454,6.16160568,60134.0,60133.0,0.42642306]
[1726395909692,6.16160568,60134.0,60133.0,0.38212406]
[1726395909918,6.16160568,60134.0,60133.0,0.21620206]
[1726395910379,6.18772257,60134.0,60133.0,0.18410206]
[1726395910602,6.16161192,60134.0,60133.0,0.18410206]
[1726395910856,6.16161192,60134.0,60133.0,0.11758206]
[1726395911095,6.16161192,60134.0,60133.0,0.05106206]
[1726395911334,6.18772294,60134.0,60133.0,0.01780206]
[1726395911564,6.18772294,60134.0,60133.0,0.00180206]
[1726395911792,6.18772294,60134.0,60133.0,6e-08]
[1726395912027,2.60686894,60134.0,60133.0,6e-08]
[1726395912249,2.55888647,60134.0,60133.0,6e-08]
[1726395915957,2.53277545,60134.0,60133.0,6e-08]
[1726395916152,2.53277545,60134.0,60133.0,0.00082306]
[1726395916605,6.11362945,60134.0,60133.0,0.00082306]
[1726395916831,6.16161192,60134.0,60133.0,0.00082306]
[1726395917322,5.82902192,60134.0,60133.0,0.00082306]
[1726395918671,6.16161192,60134.0,60133.0,0.00082306]
[1726395920418,6.18772299,60134.0,60133.0,0.00082306]
[1726395921989,1.65378525,60132.0,60131.0,2.08739006]
[1726395922213,5.23463925,60132.0,60131.0,2.08739006]
[1726395922535,5.28262172,60132.0,60131.0,2.08739006]
[1726395923279,5.62922272,60132.0,60131.0,2.08739006]
[1726395923501,5.29662172,60132.0,60131.0,2.08239006]
[1726395924361,1.71576772,60132.0,60131.0,2.08239006]
[1726395924582,5.26263925,60132.0,60131.0,2.08239006]
[1726395924794,5.64322272,60132.0,60131.0,2.08239006]
[1726395927242,5.66933387,60132.0,60131.0,2.08239006]
[1726395928650,5.66933387,60132.0,60131.0,2.08321306]
[1726395928904,5.66933387,60132.0,60131.0,2.04905406]
[1726395931867,5.66933387,60132.0,60131.0,2.03345554]
[1726395933740,5.73606387,60132.0,60131.0,2.03345554]
[1726395936038,5.40346287,60132.0,60131.0,2.03345554]
[1726395936281,5.40346287,60132.0,60131.0,1.72239254]
[1726395936513,5.37735172,60132.0,60131.0,1.72239254]
[1726395938018,5.09153472,60132.0,60131.0,1.90339254]
[1726395939240,5.11453472,60132.0,60131.0,1.90339254]
[1726395939701,5.14064492,60132.0,60131.0,1.90339254]
[1726395940149,5.14229092,60132.0,60131.0,1.90339254]
[1726395940859,5.14229092,60132.0,60131.0,1.90256954]
[1726395944114,5.11618072,60132.0,60131.0,1.90256954]
[1726395946293,5.11618072,60132.0,60131.0,1.72156954]
[1726395946523,5.11618072,60132.0,60131.0,1.71173821]
[1726395946979,5.11618072,60132.0,60131.0,1.69239872]
[1726395947225,5.14229092,60132.0,60131.0,1.69239872]
[1726395950012,5.14229092,60132.0,60131.0,1.66019276]
[1726395953369,5.14229092,60132.0,60131.0,1.66101576]
[1726395962591,5.47489192,60132.0,60131.0,1.66101576]
[1726395963960,5.47489192,60132.0,60131.0,1.64735776]
[1726395964420,2.15685492,60132.0,60131.0,1.64735776]
[1726395964719,5.68972645,60132.0,60131.0,1.64735776]
[1726395964951,2.15685492,60132.0,60131.0,1.64735776]
[1726395965163,5.73770892,60132.0,60131.0,1.64735776]
[1726395966139,5.73770892,60132.0,60131.0,1.64653476]
[1726395967441,5.68972645,60132.0,60131.0,1.64653476]
[1726395968419,5.88352645,60132.0,60131.0,1.64653476]
[1726395969354,5.88352645,60132.0,60131.0,1.63118868]
[1726395972937,5.93101068,60132.0,60131.0,1.63118868]
[1726395973873,5.73721068,60132.0,60131.0,1.63118868]
[1726395974314,5.73721068,60132.0,60131.0,1.61817985]
[1726395976674,5.71110048,60132.0,60131.0,1.61817985]
[1726395978284,5.71110048,60132.0,60131.0,1.61900285]
[1726395979818,5.73721098,60132.0,60131.0,1.61900285]
[1726395980268,5.71110048,60132.0,60131.0,1.61900285]
[1726395981939,5.71110048,60132.0,60131.0,1.61750698]
[1726395983054,5.73721098,60132.0,60131.0,1.61750698]
[1726395984018,5.71110048,60132.0,60131.0,1.61750698]
[1726395986837,5.33483548,60132.0,60131.0,1.61750698]
[1726395987292,5.36094606,60132.0,60131.0,1.61750698]
[1726395987512,5.69354706,60132.0,60131.0,1.61750698]
[1726395996374,5.36094606,60132.0,60131.0,1.61750698]
[1726395996879,5.69354706,60132.0,60131.0,1.61750698]
[1726395997118,5.36094606,60132.0,60131.0,1.61750698]
[1726396002181,5.36094606,60132.0,60131.0,1.61668398]
[1726396004080,5.33483548,60132.0,60131.0,1.61668398]
[1726396005710,5.37849948,60132.0,60131.0,1.61668398]
[1726396007261,5.40461013,60132.0,60131.0,1.61668398]
[1726396010213,5.73721113,60132.0,60131.0,1.61668398]
[1726396010439,5.58911013,60132.0,60131.0,1.61668398]
[1726396010904,5.92171113,60132.0,60131.0,1.61668398]
[1726396011136,5.58911013,60132.0,60131.0,1.61668398]
[1726396012979,5.92171113,60132.0,60131.0,1.61668398]
[1726396013418,5.58911013,60132.0,60131.0,1.61750698]
[1726396013841,5.92171113,60132.0,60131.0,1.61750698]
[1726396017156,5.89560048,60132.0,60131.0,1.61750698]
[1726396020147,5.92171113,60132.0,60131.0,1.61750698]
[1726396027143,5.89560048,60132.0,60131.0,1.61750698]
[1726396027399,6.14086034,60132.0,60131.0,1.52711853]
[1726396028325,6.14085847,60132.0,60131.0,1.51015177]
[1726396029478,6.14085941,60132.0,60131.0,1.51015177]
[1726396030119,6.16697006,60132.0,60131.0,1.51015177]
[1726396032636,5.92171113,60132.0,60131.0,1.51015177]
[1726396033715,6.166979,60132.0,60131.0,1.51015177]
[1726396033929,6.14086835,60132.0,60131.0,1.51015177]
[1726396034328,5.89560048,60132.0,60131.0,1.51015177]
[1726396034745,6.14086835,60132.0,60131.0,1.51015177]
[1726396034999,5.89560048,60132.0,60131.0,1.51015177]
[1726396035316,6.14086835,60132.0,60131.0,1.51015177]
[1726396035369,5.89560048,60132.0,60131.0,1.51015177]
[1726396035570,5.92171113,60132.0,60131.0,1.51015177]
[1726396036990,5.92171113,60132.0,60131.0,1.31274677]
[1726396041679,5.92171113,60132.0,60131.0,1.28074677]
[1726396047902,5.89560048,60132.0,60131.0,1.28074677]
[1726396048126,5.89560048,60132.0,60131.0,1.26399086]
[1726396050723,5.9217112,60132.0,60131.0,1.26399086]
[1726396051157,5.9217112,60132.0,60131.0,1.25479021]
[1726396052162,2.3408572,60132.0,60131.0,1.25479021]
[1726396052380,2.29337297,60132.0,60131.0,1.22326021]
[1726396052614,5.9217112,60132.0,60131.0,1.22326021]
[1726396053940,5.89560048,60132.0,60131.0,1.22326021]
[1726396054150,6.14085259,60132.0,60131.0,1.18988021]
[1726396054732,5.89560048,60132.0,60131.0,1.18988021]
[1726396055530,6.14085259,60132.0,60131.0,1.18988021]
[1726396056863,6.16696331,60132.0,60131.0,1.18988021]
[1726396057068,6.14085259,60132.0,60131.0,1.18988021]
[1726396057500,5.89560048,60132.0,60131.0,1.18988021]
[1726396057903,6.14085259,60132.0,60131.0,1.18988021]
[1726396058619,6.14085259,60132.0,60131.0,1.15661921]
[1726396058822,5.89560048,60132.0,60131.0,1.15661921]
[1726396060131,5.9217112,60132.0,60131.0,1.15661921]
[1726396060832,5.9217112,60132.0,60131.0,1.02456621]
[1726396061056,5.9217112,60132.0,60131.0,0.97776318]
[1726396063194,5.9217112,60132.0,60131.0,0.81285918]
[1726396063410,5.9217112,60132.0,60131.0,0.77959818]
[1726396063628,5.9217112,60132.0,60131.0,0.74633718]
[1726396063836,5.89560048,60132.0,60131.0,0.61329318]
[1726396064261,5.89560048,60132.0,60131.0,0.60495532]
[1726396064487,6.22820148,60132.0,60131.0,0.54109532]
[1726396064744,5.89560048,60132.0,60131.0,0.44131232]
[1726396064966,5.89560048,60132.0,60131.0,0.40805132]
[1726396065204,5.89560048,60132.0,60131.0,0.37479032]
[1726396065659,5.89560048,60132.0,60131.0,0.34152932]
[1726396066143,5.89560048,60132.0,60131.0,0.27500732]
[1726396066355,5.89560048,60132.0,60131.0,0.20848532]
[1726396066770,5.92171158,60132.0,60131.0,0.14196332]
[1726396066975,5.92171158,60132.0,60131.0,0.10870232]
[1726396067193,5.92171158,60132.0,60131.0,0.07544132]
[1726396067601,5.92171158,60132.0,60131.0,0.00891932]
[1726396067838,5.89560048,60132.0,60131.0,3.2e-07]
[1726396068076,5.89560048,60132.0,60129.0,1.43710332]
[1726396068077,2.64605925,60130.0,60129.0,1.43710332]
[1726396068292,6.77999748,60130.0,60129.0,1.41525759]
[1726396068765,6.77999748,60130.0,60129.0,1.38199559]
[1726396068970,6.77999748,60130.0,60129.0,1.24894759]
[1726396069176,6.79399748,60130.0,60129.0,1.24894759]
[1726396069630,6.79399748,60130.0,60129.0,1.21568559]
[1726396069852,6.80799748,60130.0,60129.0,1.21568559]
[1726396070508,6.08956648,60130.0,60129.0,1.21568559]
[1726396070717,6.11567851,60130.0,60129.0,1.21568559]
[1726396071396,6.31277851,60130.0,60129.0,1.21568559]
[1726396072939,6.54860951,60130.0,60129.0,1.21568559]